{"text_format":"1","workbook":"xlsx","n_sheets":3,"sheets":["区分変更届","裏面　（記入方法）","Sheet2"],"not_rendered":{"charts":0,"images":4,"macros":1,"external_links":0,"defined_names":2,"comments":0,"pivot_tables":0},"unopened":[],"bounds":{"document_bytes":16777216,"sheet_cells":100000,"rows_first":2000,"rows_last":500,"rows_between":2000,"halvings":0,"cell_chars":16384,"cell_head_chars":4096},"cells_cut":0,"cells_raw":0,"read":"whole","date_system":"1900"}

{"sheet":"区分変更届","index":0,"n_rows":126,"n_cols":265,"rows_kept":126,"cut":false,"hidden":false,"merged":[[0,0,0,266],[3,38,3,66],[4,37,4,66],[56,142,61,201],[76,142,81,201],[96,142,101,201],[116,142,121,201],[36,216,41,266],[56,216,61,266],[76,216,81,266],[96,216,101,266],[116,216,121,266],[1,232,2,238],[1,239,2,245],[1,246,2,252],[1,253,2,259],[1,260,2,266],[3,232,5,238],[3,239,5,245],[3,246,5,252],[3,253,5,259],[3,260,5,266],[1,101,2,108],[1,109,2,116],[1,117,2,124],[1,125,2,132],[3,67,3,99],[4,69,4,98],[6,2,6,6],[6,7,6,13],[6,14,6,16],[6,17,6,27],[6,28,6,31],[6,32,6,41],[6,42,6,48],[8,89,10,98],[8,99,10,109],[8,34,10,37],[8,38,10,41],[8,42,10,45],[8,46,10,49],[8,50,10,75],[8,76,10,79],[8,2,10,7],[8,8,10,11],[8,12,10,15],[8,16,10,19],[8,20,10,23],[8,24,10,33],[12,8,12,87],[13,2,17,7],[13,8,13,11],[13,12,13,23],[13,24,13,27],[13,28,13,44],[14,8,17,87],[8,80,10,81],[8,82,10,83],[8,84,10,85],[8,86,10,87],[24,128,27,132],[26,2,27,7],[26,17,27,35],[26,36,27,39],[26,40,27,59],[26,60,27,63],[26,64,27,82],[18,2,21,7],[18,8,21,87],[21,91,22,108],[22,2,24,7],[22,8,25,81],[22,82,25,87],[23,91,23,96],[24,91,27,127],[29,0,48,0],[29,2,35,7],[29,8,35,33],[29,34,35,47],[29,48,30,59],[29,60,30,84],[36,2,41,7],[36,8,41,12],[36,13,41,17],[36,18,41,22],[36,53,41,57],[36,58,41,62],[36,63,41,67],[36,68,41,81],[42,2,47,7],[42,8,44,42],[42,43,43,55],[42,56,44,84],[36,23,41,27],[36,28,41,32],[36,33,41,37],[36,38,41,42],[36,43,41,47],[36,48,41,52],[31,48,32,53],[31,54,35,84],[31,85,32,87],[31,88,35,103],[29,85,30,103],[29,115,35,117],[29,118,35,120],[29,121,35,123],[29,110,35,114],[29,104,35,109],[44,43,47,55],[45,8,47,42],[45,56,47,84],[42,90,47,95],[42,96,47,98],[42,99,47,101],[42,102,47,104],[42,105,47,107],[42,108,47,110],[42,85,47,89],[49,0,68,0],[49,2,55,7],[49,8,55,33],[49,34,55,47],[49,48,50,59],[49,60,50,84],[56,2,61,7],[56,8,61,12],[56,13,61,17],[56,18,61,22],[56,53,61,57],[56,58,61,62],[56,63,61,67],[56,68,61,81],[62,2,67,7],[62,8,64,42],[62,43,63,55],[62,56,64,84],[56,23,61,27],[56,28,61,32],[56,33,61,37],[56,38,61,42],[56,43,61,47],[56,48,61,52],[51,48,52,53],[51,54,55,84],[51,85,52,87],[51,88,55,103],[49,104,55,109],[49,110,55,114],[49,85,50,103],[49,115,55,117],[49,118,55,120],[64,43,67,55],[65,8,67,42],[65,56,67,84],[62,90,67,95],[62,96,67,98],[62,99,67,101],[62,102,67,104],[62,105,67,107],[62,108,67,110],[62,85,67,89],[69,0,88,0],[69,2,75,7],[69,8,75,33],[69,34,75,47],[69,48,70,59],[69,60,70,84],[76,2,81,7],[76,8,81,12],[76,13,81,17],[76,18,81,22],[76,53,81,57],[76,58,81,62],[76,63,81,67],[76,68,81,81],[82,2,87,7],[82,8,84,42],[82,43,83,55],[82,56,84,84],[76,23,81,27],[76,28,81,32],[76,33,81,37],[76,38,81,42],[76,43,81,47],[76,48,81,52],[71,48,72,53],[71,54,75,84],[71,85,72,87],[71,88,75,103],[69,85,70,103],[69,115,75,117],[69,118,75,120],[69,121,75,123],[69,104,75,109],[69,110,75,114],[84,43,87,55],[85,8,87,42],[85,56,87,84],[82,90,87,95],[82,96,87,98],[82,99,87,101],[82,102,87,104],[82,105,87,107],[82,108,87,110],[89,0,108,0],[89,2,95,7],[89,8,95,33],[89,34,95,47],[89,48,90,59],[89,60,90,84],[96,2,101,7],[96,8,101,12],[96,13,101,17],[96,18,101,22],[96,53,101,57],[96,58,101,62],[96,63,101,67],[96,68,101,81],[102,2,107,7],[102,8,104,42],[102,43,103,55],[102,56,104,84],[96,23,101,27],[96,28,101,32],[96,33,101,37],[91,48,92,53],[91,54,95,84],[96,38,101,42],[96,43,101,47],[96,48,101,52],[104,43,107,55],[105,8,107,42],[105,56,107,84],[102,90,107,95],[102,96,107,98],[102,99,107,101],[102,85,107,89],[102,102,107,104],[102,105,107,107],[102,108,107,110],[109,0,128,0],[109,2,115,7],[109,8,115,33],[109,34,115,47],[109,48,110,59],[109,60,110,84],[116,2,121,7],[116,8,121,12],[116,13,121,17],[116,18,121,22],[111,48,112,53],[111,54,115,84],[111,85,112,87],[111,88,115,103],[109,110,115,114],[109,85,110,103],[122,102,127,104],[122,105,127,107],[122,108,127,110],[109,104,115,109],[116,82,117,84],[116,53,121,57],[116,58,121,62],[116,63,121,67],[116,68,121,81],[122,2,127,7],[122,8,124,42],[122,43,123,55],[122,56,124,84],[122,85,127,89],[116,23,121,27],[116,28,121,32],[116,33,121,37],[116,38,121,42],[116,43,121,47],[116,48,121,52],[124,43,127,55],[125,8,127,42],[125,56,127,84],[6,136,6,140],[6,141,6,147],[6,148,6,150],[6,151,6,161],[6,162,6,165],[6,166,6,175],[6,176,6,182],[122,111,127,113],[122,114,127,119],[122,120,127,132],[109,124,115,126],[109,127,115,129],[109,130,115,132],[102,111,107,113],[102,114,107,119],[102,120,107,132],[89,124,95,126],[89,127,95,129],[89,130,95,132],[82,111,87,113],[82,114,87,119],[82,120,87,132],[69,124,75,126],[69,127,75,129],[8,223,10,232],[8,233,10,243],[8,168,10,171],[8,172,10,175],[8,176,10,179],[8,180,10,183],[8,184,10,209],[8,210,10,213],[8,136,10,141],[8,142,10,145],[8,146,10,149],[8,150,10,153],[8,154,10,157],[8,158,10,167],[12,142,12,221],[13,136,17,141],[13,142,13,145],[13,146,13,157],[13,158,13,161],[13,162,13,178],[14,142,17,221],[8,214,10,215],[8,216,10,217],[8,218,10,219],[8,220,10,221],[24,262,27,266],[26,136,27,141],[26,151,27,169],[26,170,27,173],[26,174,27,193],[26,194,27,197],[26,198,27,216],[18,136,21,141],[18,142,21,221],[21,225,22,242],[22,136,24,141],[22,142,25,215],[22,216,25,221],[23,225,23,230],[24,225,27,261],[29,142,35,167],[29,168,35,181],[29,182,30,193],[29,194,30,218],[36,136,41,141],[36,202,41,215],[42,136,47,141],[42,142,44,176],[42,177,43,189],[42,190,44,218],[36,142,41,201],[45,142,47,176],[29,258,35,260],[29,261,35,263],[29,264,35,266],[31,182,32,187],[31,188,35,218],[31,219,32,221],[31,222,35,237],[29,219,30,237],[29,249,35,251],[29,252,35,254],[29,255,35,257],[29,238,35,243],[29,244,35,248],[42,245,47,247],[42,248,47,253],[42,254,47,266],[44,177,47,189],[45,190,47,218],[42,224,47,229],[42,230,47,232],[42,233,47,235],[42,236,47,238],[42,239,47,241],[42,242,47,244],[42,219,47,223],[49,182,50,193],[49,194,50,218],[56,136,61,141],[56,202,61,215],[49,258,55,260],[49,261,55,263],[49,264,55,266],[51,182,52,187],[51,188,55,218],[51,219,52,221],[51,222,55,237],[49,238,55,243],[49,244,55,248],[49,219,50,237],[49,249,55,251],[49,252,55,254],[49,255,55,257],[62,245,67,247],[62,248,67,253],[62,254,67,266],[64,177,67,189],[65,142,67,176],[65,190,67,218],[62,224,67,229],[62,230,67,232],[62,233,67,235],[62,236,67,238],[62,239,67,241],[62,242,67,244],[62,142,64,176],[62,177,63,189],[62,190,64,218],[62,219,67,223],[69,258,75,260],[69,261,75,263],[69,264,75,266],[71,182,72,187],[71,188,75,218],[71,219,72,221],[71,222,75,237],[69,219,70,237],[69,249,75,251],[69,252,75,254],[69,255,75,257],[69,182,70,193],[69,194,70,218],[69,238,75,243],[69,244,75,248],[82,245,87,247],[82,248,87,253],[82,254,87,266],[84,177,87,189],[85,142,87,176],[85,190,87,218],[82,224,87,229],[82,230,87,232],[82,233,87,235],[82,236,87,238],[82,239,87,241],[82,242,87,244],[82,142,84,176],[82,177,83,189],[82,190,84,218],[82,219,87,223],[89,264,95,266],[91,182,92,187],[91,188,95,218],[91,219,92,221],[91,222,95,237],[89,238,95,243],[89,244,95,248],[89,219,90,237],[89,249,95,251],[89,252,95,254],[89,255,95,257],[89,182,90,193],[89,194,90,218],[89,258,95,260],[89,261,95,263],[109,238,115,243],[109,244,115,248],[109,219,110,237],[109,249,115,251],[109,252,115,254],[109,255,115,257],[102,219,107,223],[102,245,107,247],[102,248,107,253],[102,254,107,266],[102,224,107,229],[102,230,107,232],[102,233,107,235],[102,236,107,238],[102,239,107,241],[102,242,107,244],[109,258,115,260],[109,261,115,263],[109,264,115,266],[122,245,127,247],[122,248,127,253],[122,254,127,266],[124,177,127,189],[125,142,127,176],[125,190,127,218],[122,224,127,229],[122,230,127,232],[122,233,127,235],[122,236,127,238],[122,239,127,241],[122,242,127,244],[122,142,124,176],[122,177,123,189],[122,190,124,218],[69,136,75,141],[62,136,67,141],[49,134,68,134],[49,136,55,141],[29,134,48,134],[29,136,35,141],[62,111,67,113],[62,114,67,119],[49,124,55,126],[62,120,67,132],[49,127,55,129],[49,130,55,132],[49,121,55,123],[42,111,47,113],[42,114,47,119],[29,124,35,126],[42,120,47,132],[29,127,35,129],[29,130,35,132],[69,130,75,132],[36,82,37,84],[36,85,37,88],[36,90,37,95],[36,89,37,89],[38,82,41,132],[56,82,57,84],[56,85,57,88],[69,134,88,134],[122,96,127,98],[122,99,127,101],[78,82,81,132],[96,82,97,84],[96,85,97,88],[96,89,97,89],[96,90,97,95],[98,82,101,132],[56,89,57,89],[56,90,57,95],[58,82,61,132],[76,82,77,84],[76,85,77,88],[76,89,77,89],[76,90,77,95],[89,118,95,120],[89,121,95,123],[91,85,92,87],[91,88,95,103],[89,85,90,103],[89,104,95,109],[89,110,95,114],[82,85,87,89],[89,115,95,117],[49,142,55,167],[49,168,55,181],[109,134,128,134],[111,188,115,218],[111,219,112,221],[109,136,115,141],[116,85,117,88],[116,89,117,89],[116,90,117,95],[109,142,115,167],[109,168,115,181],[118,82,121,132],[122,219,127,223],[116,136,121,141],[116,202,121,215],[111,182,112,187],[109,182,110,193],[109,194,110,218],[122,136,127,141],[111,222,115,237],[109,115,115,117],[109,118,115,120],[109,121,115,123],[122,90,127,95],[1,218,2,224],[3,218,5,224],[3,167,3,217],[1,225,2,231],[3,225,5,231],[69,142,75,167],[69,168,75,181],[89,134,108,134],[89,136,95,141],[89,142,95,167],[89,168,95,181],[96,136,101,141],[3,135,3,166],[96,202,101,215],[104,177,107,189],[105,142,107,176],[105,190,107,218],[76,136,81,141],[102,136,107,141],[102,142,104,176],[102,177,103,189],[102,190,104,218],[82,136,87,141],[76,202,81,215]]}
["左側の厚生年金提出用を入力すると健康保険提出用にも自動で反映されます。\n印刷すると２枚出力されますので１枚目を厚生年金、２枚目を川口工業健康保険組合にご提出ください。"]
[null,null,null,null,null,null,null,null,null,null,null,null,null,null,null,null,null,null,null,null,null,null,null,null,null,null,null,null,null,null,null,null,null,null,null,null,null,null,null,null,null,null,null,null,null,null,null,null,null,null,null,null,null,null,null,null,null,null,null,null,null,null,null,null,null,null,null,null,null,null,null,null,null,null,null,null,null,null,null,null,null,null,null,null,null,null,null,null,null,null,null,null,null,null,null,null,null,null,null,null,null,"事務センター長\n所　長",null,null,null,null,null,null,null,"副事務センター長\n副　所　長",null,null,null,null,null,null,null,"グループ長\n課　　長",null,null,null,null,null,null,null,"担　当　者",null,null,null,null,null,null,null,null,null,null,null,null,null,null,null,null,null,null,null,null,null,null,null,null,null,null,null,null,null,null,null,null,null,null,null,null,null,null,null,null,null,null,null,null,null,null,null,null,null,null,null,null,null,null,null,null,null,null,null,null,null,null,null,null,null,null,null,null,null,null,null,null,null,null,null,null,null,null,null,null,null,null,null,null,null,null,null,null,null,null,null,null,"常務理事",null,null,null,null,null,null,"事務局長",null,null,null,null,null,null,"次　長",null,null,null,null,null,null,"課　長",null,null,null,null,null,null,"担当課長",null,null,null,null,null,null,"係　長",null,null,null,null,null,null,"係"]
[]
[null,null,null,null,null,null,null,null,null,null,null,null,null,null,null,null,null,null,null,null,null,null,null,null,null,null,null,null,null,null,null,null,null,null,null,null,null,null,"厚生年金保険",null,null,null,null,null,null,null,null,null,null,null,null,null,null,null,null,null,null,null,null,null,null,null,null,null,null,null,null,"被保険者区分変更届",null,null,null,null,null,null,null,null,null,null,null,null,null,null,null,null,null,null,null,null,null,null,null,null,null,null,null,null,null,null,null,null,null,null,null,null,null,null,null,null,null,null,null,null,null,null,null,null,null,null,null,null,null,null,null,null,null,null,null,null,null,null,null,null,null,null,null,"川口工業健康保険組合提出用",null,null,null,null,null,null,null,null,null,null,null,null,null,null,null,null,null,null,null,null,null,null,null,null,null,null,null,null,null,null,null,"被保険者区分変更届"]
[null,null,null,null,null,null,null,null,null,null,null,null,null,null,null,null,null,null,null,null,null,null,null,null,null,null,null,null,null,null,null,null,null,null,null,null,null,"厚生年金保険",null,null,null,null,null,null,null,null,null,null,null,null,null,null,null,null,null,null,null,null,null,null,null,null,null,null,null,null,null,null,null,"70歳以上被用者区分変更",null,null,null,null,null,null,null,null,null,null,null,null,null,null,null,null,null,null,null,null,null,null,null,null,null,null,null,null,null,null,null,null,null,null,null,null,null,null,null,null,null,null,null,null,null,null,null,null,null,null,null,null,null,null,null,null,null,null,null,null,null,null,null,null,null,null,null,null,null,null,null,null,null,null,null,null,null,null,null,null,null,null,null,null,null,null,null,null,null,null,null,null,null,null,null,null,null,null,null,null,null,null,null,null,null,null,null,null,1,1,1,1,1,1,1,1,1,1,1,1,1,1,1,1,1,1,1,1,1,1,1,1,1,1,1,1,1,1,1,1,1,1,1,1,1,1,1,1]
[]
[null,null,"令和",null,null,null,null,null,null,null,null,null,null,null,"年",null,null,null,null,null,null,null,null,null,null,null,null,null,"月",null,null,null,null,null,null,null,null,null,null,null,null,null,"日提出",null,null,null,null,null,null,null,null,null,null,null,null,null,null,null,null,null,null,null,null,null,null,null,null,null,null,null,null,null,null,null,null,null,null,null,null,null,null,null,null,null,null,null,null,null,null,null,null,null,null,null,null,null,null,null,null,null,null,null,null,null,null,null,null,null,null,null,null,null,null,null,null,null,null,null,null,null,null,null,null,null,null,null,null,null,null,null,null,null,null,null,null,null,"令和",null,null,null,null,null,null,null,null,null,null,null,"年",null,null,null,null,null,null,null,null,null,null,null,null,null,"月",null,null,null,null,null,null,null,null,null,null,null,null,null,"日提出"]
[]
[null,null,"厚生年金\n保険事業所\n整理記号",null,null,null,null,null,null,null,null,null,null,null,null,null,null,null,null,null,null,null,null,null,"-",null,null,null,null,null,null,null,null,null,null,null,null,null,null,null,null,null,null,null,null,null,null,null,null,null,"厚生年金保険\n事業所番号",null,null,null,null,null,null,null,null,null,null,null,null,null,null,null,null,null,null,null,null,null,null,null,null,null,null,null,null,null,null,null,null,null,null,null,null,null,null,"健康保険\n事業所記号",null,null,null,null,null,null,null,null,null,null,null,null,null,null,null,null,null,null,null,null,null,null,null,null,null,null,null,null,null,null,null,null,null,null,null,null,null,null,null,null,null,null,null,null,null,null,"厚生年金\n保険事業所\n整理記号",null,null,null,null,null,null,null,null,null,null,null,null,null,{"$f":"Q9&\"\"","v":""},null,null,null,{"$f":"U9&\"\"","v":""},null,null,null,"-",null,null,null,null,null,null,null,null,null,{"$f":"AI9&\"\"","v":""},null,null,null,{"$f":"AM9&\"\"","v":""},null,null,null,{"$f":"AQ9&\"\"","v":""},null,null,null,{"$f":"AU9&\"\"","v":""},null,null,null,"厚生年金保険\n事業所番号",null,null,null,null,null,null,null,null,null,null,null,null,null,null,null,null,null,null,null,null,null,null,null,null,null,{"$f":"BY9&\"\"","v":""},null,null,null,{"$f":"CC9&\"\"","v":""},null,{"$f":"CE9&\"\"","v":""},null,{"$f":"CG9&\"\"","v":""},null,{"$f":"CI9&\"\"","v":""},null,null,"健康保険\n事業所記号",null,null,null,null,null,null,null,null,null,{"$f":"CV9&\"\"","v":""}]
[]
[]
[]
[null,null,null,null,null,null,null,null,"　届書記入の個人番号に誤りがないことを確認しました。",null,null,null,null,null,null,null,null,null,null,null,null,null,null,null,null,null,null,null,null,null,null,null,null,null,null,null,null,null,null,null,null,null,null,null,null,null,null,null,null,null,null,null,null,null,null,null,null,null,null,null,null,null,null,null,null,null,null,null,null,null,null,null,null,null,null,null,null,null,null,null,null,null,null,null,null,null,null,null,null,null,null,null,null,null,null,null,null,null,null,null,null,null,null,null,null,null,null,null,null,null,null,null,null,null,null,null,null,null,null,null,null,null,null,null,null,null,null,null,null,null,null,null,null,null,null,null,null,null,null,null,null,null,"　届書記入の個人番号に誤りがないことを確認しました。"]
[null,null,"事業所\n所在地",null,null,null,null,null,"〒",null,null,null,null,null,null,null,null,null,null,null,null,null,null,null,"-",null,null,null,null,null,null,null,null,null,null,null,null,null,null,null,null,null,null,null,null,null,null,null,null,null,null,null,null,null,null,null,null,null,null,null,null,null,null,null,null,null,null,null,null,null,null,null,null,null,null,null,null,null,null,null,null,null,null,null,null,null,null,null,null,null,null,null,null,null,null,null,null,null,null,null,null,null,null,null,null,null,null,null,null,null,null,null,null,null,null,null,null,null,null,null,null,null,null,null,null,null,null,null,null,null,null,null,null,null,null,null,"事業所\n所在地",null,null,null,null,null,"〒",null,null,null,{"$f":"M14&\"\"","v":""},null,null,null,null,null,null,null,null,null,null,null,"-",null,null,null,{"$f":"AC14&\"\"","v":""}]
[null,null,null,null,null,null,null,null,null,null,null,null,null,null,null,null,null,null,null,null,null,null,null,null,null,null,null,null,null,null,null,null,null,null,null,null,null,null,null,null,null,null,null,null,null,null,null,null,null,null,null,null,null,null,null,null,null,null,null,null,null,null,null,null,null,null,null,null,null,null,null,null,null,null,null,null,null,null,null,null,null,null,null,null,null,null,null,null,null,null,null,null,null,null,null,null,null,null,null,null,null,null,null,null,null,null,null,null,null,null,null,null,null,null,null,null,null,null,null,null,null,null,null,null,null,null,null,null,null,null,null,null,null,null,null,null,null,null,null,null,null,null,{"$f":"I15&\"\"","v":""}]
[]
[]
[]
[null,null,"事業所\n名　称",null,null,null,null,null,null,null,null,null,null,null,null,null,null,null,null,null,null,null,null,null,null,null,null,null,null,null,null,null,null,null,null,null,null,null,null,null,null,null,null,null,null,null,null,null,null,null,null,null,null,null,null,null,null,null,null,null,null,null,null,null,null,null,null,null,null,null,null,null,null,null,null,null,null,null,null,null,null,null,null,null,null,null,null,null,null,null,null,null,null,null,null,null,null,null,null,null,null,null,null,null,null,null,null,null,null,null,null,null,null,null,null,null,null,null,null,null,null,null,null,null,null,null,null,null,null,null,null,null,null,null,null,null,"事業所\n名　称",null,null,null,null,null,{"$f":"I19&\"\"","v":""}]
[]
[]
[null,null,null,null,null,null,null,null,null,null,null,null,null,null,null,null,null,null,null,null,null,null,null,null,null,null,null,null,null,null,null,null,null,null,null,null,null,null,null,null,null,null,null,null,null,null,null,null,null,null,null,null,null,null,null,null,null,null,null,null,null,null,null,null,null,null,null,null,null,null,null,null,null,null,null,null,null,null,null,null,null,null,null,null,null,null,null,null,null,null,null,"社会保険労務士記載欄",null,null,null,null,null,null,null,null,null,null,null,null,null,null,null,null,null,null,null,null,null,null,null,null,null,null,null,null,null,null,null,null,null,null,null,null,null,null,null,null,null,null,null,null,null,null,null,null,null,null,null,null,null,null,null,null,null,null,null,null,null,null,null,null,null,null,null,null,null,null,null,null,null,null,null,null,null,null,null,null,null,null,null,null,null,null,null,null,null,null,null,null,null,null,null,null,null,null,null,null,null,null,null,null,null,null,null,null,null,null,null,null,null,null,null,null,null,null,null,null,null,null,null,null,null,null,null,null,null,null,null,null,null,"社会保険労務士記載欄"]
[null,null,"事業主\n氏　名",null,null,null,null,null,null,null,null,null,null,null,null,null,null,null,null,null,null,null,null,null,null,null,null,null,null,null,null,null,null,null,null,null,null,null,null,null,null,null,null,null,null,null,null,null,null,null,null,null,null,null,null,null,null,null,null,null,null,null,null,null,null,null,null,null,null,null,null,null,null,null,null,null,null,null,null,null,null,null,null,null,null,null,null,null,null,null,null,null,null,null,null,null,null,null,null,null,null,null,null,null,null,null,null,null,null,null,null,null,null,null,null,null,null,null,null,null,null,null,null,null,null,null,null,null,null,null,null,null,null,null,null,null,"事業主\n氏　名",null,null,null,null,null,{"$f":"I23&\"\"","v":""}]
[null,null,null,null,null,null,null,null,null,null,null,null,null,null,null,null,null,null,null,null,null,null,null,null,null,null,null,null,null,null,null,null,null,null,null,null,null,null,null,null,null,null,null,null,null,null,null,null,null,null,null,null,null,null,null,null,null,null,null,null,null,null,null,null,null,null,null,null,null,null,null,null,null,null,null,null,null,null,null,null,null,null,null,null,null,null,null,null,null,null,null,"氏　　名　　等",null,null,null,null,null,null,null,null,null,null,null,null,null,null,null,null,null,null,null,null,null,null,null,null,null,null,null,null,null,null,null,null,null,null,null,null,null,null,null,null,null,null,null,null,null,null,null,null,null,null,null,null,null,null,null,null,null,null,null,null,null,null,null,null,null,null,null,null,null,null,null,null,null,null,null,null,null,null,null,null,null,null,null,null,null,null,null,null,null,null,null,null,null,null,null,null,null,null,null,null,null,null,null,null,null,null,null,null,null,null,null,null,null,null,null,null,null,null,null,null,null,null,null,null,null,null,null,null,null,null,null,null,null,"氏　　名　　等"]
[null,null,null,null,null,null,null,null,null,null,null,null,null,null,null,null,null,null,null,null,null,null,null,null,null,null,null,null,null,null,null,null,null,null,null,null,null,null,null,null,null,null,null,null,null,null,null,null,null,null,null,null,null,null,null,null,null,null,null,null,null,null,null,null,null,null,null,null,null,null,null,null,null,null,null,null,null,null,null,null,null,null,null,null,null,null,null,null,null,null,null,null,null,null,null,null,null,null,null,null,null,null,null,null,null,null,null,null,null,null,null,null,null,null,null,null,null,null,null,null,null,null,null,null,null,null,null,null,null,null,null,null,null,null,null,null,null,null,null,null,null,null,null,null,null,null,null,null,null,null,null,null,null,null,null,null,null,null,null,null,null,null,null,null,null,null,null,null,null,null,null,null,null,null,null,null,null,null,null,null,null,null,null,null,null,null,null,null,null,null,null,null,null,null,null,null,null,null,null,null,null,null,null,null,null,null,null,null,null,null,null,null,null,null,null,null,null,null,null,null,null,null,null,null,null,{"$f":"CN25&\"\"","v":""}]
[]
[null,null,"電話番号",null,null,null,null,null,null,null,null,null,null,null,null,null,null,null,null,null,null,null,null,null,null,null,null,null,null,null,null,null,null,null,null,null,"(",null,null,null,null,null,null,null,null,null,null,null,null,null,null,null,null,null,null,null,null,null,null,null,")",null,null,null,null,null,null,null,null,null,null,null,null,null,null,null,null,null,null,null,null,null,null,null,null,null,null,null,null,null,null,null,null,null,null,null,null,null,null,null,null,null,null,null,null,null,null,null,null,null,null,null,null,null,null,null,null,null,null,null,null,null,null,null,null,null,null,null,null,null,null,null,null,null,null,null,"電話番号",null,null,null,null,null,null,null,null,null,null,null,null,null,null,{"$f":"R27&\"\"","v":""},null,null,null,null,null,null,null,null,null,null,null,null,null,null,null,null,null,null,"(",null,null,null,{"$f":"AO27&\"\"","v":""},null,null,null,null,null,null,null,null,null,null,null,null,null,null,null,null,null,null,null,")",null,null,null,{"$f":"BM27&\"\"","v":""}]
[]
[]
["　",null,"②\n\n　被保険者\n　整理番号",null,null,null,null,null,null,null,null,null,null,null,null,null,null,null,null,null,null,null,null,null,null,null,null,null,null,null,null,null,null,null,"氏　名",null,null,null,null,null,null,null,null,null,null,null,null,null,"（フリガナ）",null,null,null,null,null,null,null,null,null,null,null,null,null,null,null,null,null,null,null,null,null,null,null,null,null,null,null,null,null,null,null,null,null,null,null,null,null,null,null,null,null,null,null,null,null,null,null,null,null,null,null,null,null,null,null,"④\n\n\n 生年月日",null,null,null,null,null,"5. 昭和\n\n7. 平成\n\n9. 令和",null,null,null,null,null,null,null,null,null,null,null,null,null,null,null,null,null,null,null,null,null,null,null,"　",null,"②\n\n　被保険者\n　整理番号",null,null,null,null,null,{"$f":"I30&\"\"","v":""},null,null,null,null,null,null,null,null,null,null,null,null,null,null,null,null,null,null,null,null,null,null,null,null,null,"氏　名",null,null,null,null,null,null,null,null,null,null,null,null,null,"（フリガナ）",null,null,null,null,null,null,null,null,null,null,null,{"$f":"BI30&\"\"","v":""},null,null,null,null,null,null,null,null,null,null,null,null,null,null,null,null,null,null,null,null,null,null,null,null,{"$f":"CH30&\"\"","v":""},null,null,null,null,null,null,null,null,null,null,null,null,null,null,null,null,null,null,"④\n\n\n 生年月日",null,null,null,null,null,{"$f":"DG30","v":"5. 昭和\n\n7. 平成\n\n9. 令和"},null,null,null,null,{"$f":"DL30&\"\"","v":""},null,null,{"$f":"DO30&\"\"","v":""},null,null,{"$f":"DR30&\"\"","v":""},null,null,{"$f":"DU30&\"\"","v":""},null,null,{"$f":"DX30&\"\"","v":""},null,null,{"$f":"EA30&\"\"","v":""}]
[]
[null,null,null,null,null,null,null,null,null,null,null,null,null,null,null,null,null,null,null,null,null,null,null,null,null,null,null,null,null,null,null,null,null,null,null,null,null,null,null,null,null,null,null,null,null,null,null,null,"（氏）",null,null,null,null,null,null,null,null,null,null,null,null,null,null,null,null,null,null,null,null,null,null,null,null,null,null,null,null,null,null,null,null,null,null,null,null,"（名）",null,null,null,null,null,null,null,null,null,null,null,null,null,null,null,null,null,null,null,null,null,null,null,null,null,null,null,null,null,null,null,null,null,null,null,null,null,null,null,null,null,null,null,null,null,null,null,null,null,null,null,null,null,null,null,null,null,null,null,null,null,null,null,null,null,null,null,null,null,null,null,null,null,null,null,null,null,null,null,null,null,null,null,null,null,null,null,null,null,null,null,null,null,null,null,null,"（氏）",null,null,null,null,null,{"$f":"BC32&\"\"","v":""},null,null,null,null,null,null,null,null,null,null,null,null,null,null,null,null,null,null,null,null,null,null,null,null,null,null,null,null,null,null,"（名）",null,null,{"$f":"CK32&\"\"","v":""}]
[]
[]
[]
[]
[null,null,"③\n\n　個人番号",null,null,null,null,null,null,null,null,null,null,null,null,null,null,null,null,null,null,null,null,null,null,null,null,null,null,null,null,null,null,null,null,null,null,null,null,null,null,null,null,null,null,null,null,null,null,null,null,null,null,null,null,null,null,null,null,null,null,null,null,null,null,null,null,null,"住　所\n※個人番号を記入\nした場合は住所\n　記入は不要です。",null,null,null,null,null,null,null,null,null,null,null,null,null,"〒",null,null,null,null,null,null,"-",null,null,null,null,null,null,null,null,null,null,null,null,null,null,null,null,null,null,null,null,null,null,null,null,null,null,null,null,null,null,null,null,null,null,null,null,null,null,null,null,null,null,null,null,null,null,"③\n\n　個人番号",null,null,null,null,null,null,null,null,null,null,null,null,null,null,null,null,null,null,null,null,null,null,null,null,null,null,null,null,null,null,null,null,null,null,null,null,null,null,null,null,null,null,null,null,null,null,null,null,null,null,null,null,null,null,null,null,null,null,null,null,null,null,null,null,null,"住　所"]
[]
[]
[]
[]
[]
[null,null,"⑤\n\n　処理区分\n※該当しない場合は不要です。",null,null,null,null,null,null,null,null,null,null,null,null,null,null,null,null,null,null,null,null,null,null,null,null,null,null,null,null,null,null,null,null,null,null,null,null,null,null,null,null,"⑥",null,null,null,null,null,null,null,null,null,null,null,null,null,null,null,null,null,null,null,null,null,null,null,null,null,null,null,null,null,null,null,null,null,null,null,null,null,null,null,null,null,"⑦\n\n  変 更\n 年月日",null,null,null,null,"9.令和",null,null,null,null,null,null,null,null,null,null,null,null,null,null,null,null,null,null,null,null,null,null,null,"備考",null,null,null,null,null,null,null,null,null,null,null,null,null,null,null,null,null,null,null,null,null,"⑤\n\n　処理区分\n※該当しない場合は不要です。",null,null,null,null,null,{"$f":"I43&\"\"","v":""},null,null,null,null,null,null,null,null,null,null,null,null,null,null,null,null,null,null,null,null,null,null,null,null,null,null,null,null,null,null,null,null,null,null,"⑥",null,null,null,null,null,null,null,null,null,null,null,null,{"$f":"BE43&\"\"","v":""},null,null,null,null,null,null,null,null,null,null,null,null,null,null,null,null,null,null,null,null,null,null,null,null,null,null,null,null,"⑦\n\n  変 更\n 年月日",null,null,null,null,"9.令和",null,null,null,null,null,{"$f":"CS43&\"\"","v":""},null,null,{"$f":"CV43&\"\"","v":""},null,null,{"$f":"CY43&\"\"","v":""},null,null,{"$f":"DB43&\"\"","v":""},null,null,{"$f":"DE43&\"\"","v":""},null,null,{"$f":"DH43&\"\"","v":""},null,null,"備考",null,null,null,null,null,{"$f":"DQ43&\"\"","v":""}]
[]
[null,null,null,null,null,null,null,null,null,null,null,null,null,null,null,null,null,null,null,null,null,null,null,null,null,null,null,null,null,null,null,null,null,null,null,null,null,null,null,null,null,null,null,"変更後\n区分",null,null,null,null,null,null,null,null,null,null,null,null,null,null,null,null,null,null,null,null,null,null,null,null,null,null,null,null,null,null,null,null,null,null,null,null,null,null,null,null,null,null,null,null,null,null,null,null,null,null,null,null,null,null,null,null,null,null,null,null,null,null,null,null,null,null,null,null,null,null,null,null,null,null,null,null,null,null,null,null,null,null,null,null,null,null,null,null,null,null,null,null,null,null,null,null,null,null,null,null,null,null,null,null,null,null,null,null,null,null,null,null,null,null,null,null,null,null,null,null,null,null,null,null,null,null,null,null,null,null,null,null,null,"変更後\n区分"]
[null,null,null,null,null,null,null,null,null,null,null,null,null,null,null,null,null,null,null,null,null,null,null,null,null,null,null,null,null,null,null,null,null,null,null,null,null,null,null,null,null,null,null,null,null,null,null,null,null,null,null,null,null,null,null,null,null,null,null,null,null,null,null,null,null,null,null,null,null,null,null,null,null,null,null,null,null,null,null,null,null,null,null,null,null,null,null,null,null,null,null,null,null,null,null,null,null,null,null,null,null,null,null,null,null,null,null,null,null,null,null,null,null,null,null,null,null,null,null,null,null,null,null,null,null,null,null,null,null,null,null,null,null,null,null,null,null,null,null,null,null,null,{"$f":"I46&\"\"","v":""},null,null,null,null,null,null,null,null,null,null,null,null,null,null,null,null,null,null,null,null,null,null,null,null,null,null,null,null,null,null,null,null,null,null,null,null,null,null,null,null,null,null,null,null,null,null,null,{"$f":"BE46&\"\"","v":""}]
[]
[]
[]
["　",null,"②\n\n　被保険者\n　整理番号",null,null,null,null,null,null,null,null,null,null,null,null,null,null,null,null,null,null,null,null,null,null,null,null,null,null,null,null,null,null,null,"氏　名",null,null,null,null,null,null,null,null,null,null,null,null,null,"（フリガナ）",null,null,null,null,null,null,null,null,null,null,null,null,null,null,null,null,null,null,null,null,null,null,null,null,null,null,null,null,null,null,null,null,null,null,null,null,null,null,null,null,null,null,null,null,null,null,null,null,null,null,null,null,null,null,null,"④\n\n\n 生年月日",null,null,null,null,null,"5. 昭和\n\n7. 平成\n\n9. 令和",null,null,null,null,null,null,null,null,null,null,null,null,null,null,null,null,null,null,null,null,null,null,null,"　",null,"②\n\n　被保険者\n　整理番号",null,null,null,null,null,{"$f":"I50&\"\"","v":""},null,null,null,null,null,null,null,null,null,null,null,null,null,null,null,null,null,null,null,null,null,null,null,null,null,"氏　名",null,null,null,null,null,null,null,null,null,null,null,null,null,"（フリガナ）",null,null,null,null,null,null,null,null,null,null,null,{"$f":"BI50&\"\"","v":""},null,null,null,null,null,null,null,null,null,null,null,null,null,null,null,null,null,null,null,null,null,null,null,null,{"$f":"CH50&\"\"","v":""},null,null,null,null,null,null,null,null,null,null,null,null,null,null,null,null,null,null,"④\n\n\n 生年月日",null,null,null,null,null,{"$f":"DG50","v":"5. 昭和\n\n7. 平成\n\n9. 令和"},null,null,null,null,{"$f":"DL50&\"\"","v":""},null,null,{"$f":"DO50&\"\"","v":""},null,null,{"$f":"DR50&\"\"","v":""},null,null,{"$f":"DU50&\"\"","v":""},null,null,{"$f":"DX50&\"\"","v":""},null,null,{"$f":"EA50&\"\"","v":""}]
[]
[null,null,null,null,null,null,null,null,null,null,null,null,null,null,null,null,null,null,null,null,null,null,null,null,null,null,null,null,null,null,null,null,null,null,null,null,null,null,null,null,null,null,null,null,null,null,null,null,"（氏）",null,null,null,null,null,null,null,null,null,null,null,null,null,null,null,null,null,null,null,null,null,null,null,null,null,null,null,null,null,null,null,null,null,null,null,null,"（名）",null,null,null,null,null,null,null,null,null,null,null,null,null,null,null,null,null,null,null,null,null,null,null,null,null,null,null,null,null,null,null,null,null,null,null,null,null,null,null,null,null,null,null,null,null,null,null,null,null,null,null,null,null,null,null,null,null,null,null,null,null,null,null,null,null,null,null,null,null,null,null,null,null,null,null,null,null,null,null,null,null,null,null,null,null,null,null,null,null,null,null,null,null,null,null,null,"（氏）",null,null,null,null,null,{"$f":"BC52&\"\"","v":""},null,null,null,null,null,null,null,null,null,null,null,null,null,null,null,null,null,null,null,null,null,null,null,null,null,null,null,null,null,null,"（名）",null,null,{"$f":"CK52&\"\"","v":""}]
[]
[]
[]
[]
[null,null,"③\n\n　個人番号",null,null,null,null,null,null,null,null,null,null,null,null,null,null,null,null,null,null,null,null,null,null,null,null,null,null,null,null,null,null,null,null,null,null,null,null,null,null,null,null,null,null,null,null,null,null,null,null,null,null,null,null,null,null,null,null,null,null,null,null,null,null,null,null,null,"住　所\n※個人番号を記入\nした場合は住所\n　記入は不要です。",null,null,null,null,null,null,null,null,null,null,null,null,null,"〒",null,null,null,null,null,null,"-",null,null,null,null,null,null,null,null,null,null,null,null,null,null,null,null,null,null,null,null,null,null,null,null,null,null,null,null,null,null,null,null,null,null,null,null,null,null,null,null,null,null,null,null,null,null,"③\n\n　個人番号",null,null,null,null,null,null,null,null,null,null,null,null,null,null,null,null,null,null,null,null,null,null,null,null,null,null,null,null,null,null,null,null,null,null,null,null,null,null,null,null,null,null,null,null,null,null,null,null,null,null,null,null,null,null,null,null,null,null,null,null,null,null,null,null,null,"住　所"]
[]
[]
[]
[]
[]
[null,null,"⑤\n\n　処理区分\n※該当しない場合は不要です。",null,null,null,null,null,null,null,null,null,null,null,null,null,null,null,null,null,null,null,null,null,null,null,null,null,null,null,null,null,null,null,null,null,null,null,null,null,null,null,null,"⑥",null,null,null,null,null,null,null,null,null,null,null,null,null,null,null,null,null,null,null,null,null,null,null,null,null,null,null,null,null,null,null,null,null,null,null,null,null,null,null,null,null,"⑦\n\n  変 更\n 年月日",null,null,null,null,"9.令和",null,null,null,null,null,null,null,null,null,null,null,null,null,null,null,null,null,null,null,null,null,null,null,"備考",null,null,null,null,null,null,null,null,null,null,null,null,null,null,null,null,null,null,null,null,null,"⑤\n\n　処理区分\n※該当しない場合は不要です。",null,null,null,null,null,{"$f":"I63&\"\"","v":""},null,null,null,null,null,null,null,null,null,null,null,null,null,null,null,null,null,null,null,null,null,null,null,null,null,null,null,null,null,null,null,null,null,null,"⑥",null,null,null,null,null,null,null,null,null,null,null,null,{"$f":"BE63&\"\"","v":""},null,null,null,null,null,null,null,null,null,null,null,null,null,null,null,null,null,null,null,null,null,null,null,null,null,null,null,null,"⑦\n\n  変 更\n 年月日",null,null,null,null,"9.令和",null,null,null,null,null,{"$f":"CS63&\"\"","v":""},null,null,{"$f":"CV63&\"\"","v":""},null,null,{"$f":"CY63&\"\"","v":""},null,null,{"$f":"DB63&\"\"","v":""},null,null,{"$f":"DE63&\"\"","v":""},null,null,{"$f":"DH63&\"\"","v":""},null,null,"備考",null,null,null,null,null,{"$f":"DQ63&\"\"","v":""}]
[]
[null,null,null,null,null,null,null,null,null,null,null,null,null,null,null,null,null,null,null,null,null,null,null,null,null,null,null,null,null,null,null,null,null,null,null,null,null,null,null,null,null,null,null,"変更後\n区分",null,null,null,null,null,null,null,null,null,null,null,null,null,null,null,null,null,null,null,null,null,null,null,null,null,null,null,null,null,null,null,null,null,null,null,null,null,null,null,null,null,null,null,null,null,null,null,null,null,null,null,null,null,null,null,null,null,null,null,null,null,null,null,null,null,null,null,null,null,null,null,null,null,null,null,null,null,null,null,null,null,null,null,null,null,null,null,null,null,null,null,null,null,null,null,null,null,null,null,null,null,null,null,null,null,null,null,null,null,null,null,null,null,null,null,null,null,null,null,null,null,null,null,null,null,null,null,null,null,null,null,null,null,"変更後\n区分"]
[null,null,null,null,null,null,null,null,null,null,null,null,null,null,null,null,null,null,null,null,null,null,null,null,null,null,null,null,null,null,null,null,null,null,null,null,null,null,null,null,null,null,null,null,null,null,null,null,null,null,null,null,null,null,null,null,null,null,null,null,null,null,null,null,null,null,null,null,null,null,null,null,null,null,null,null,null,null,null,null,null,null,null,null,null,null,null,null,null,null,null,null,null,null,null,null,null,null,null,null,null,null,null,null,null,null,null,null,null,null,null,null,null,null,null,null,null,null,null,null,null,null,null,null,null,null,null,null,null,null,null,null,null,null,null,null,null,null,null,null,null,null,{"$f":"I66&\"\"","v":""},null,null,null,null,null,null,null,null,null,null,null,null,null,null,null,null,null,null,null,null,null,null,null,null,null,null,null,null,null,null,null,null,null,null,null,null,null,null,null,null,null,null,null,null,null,null,null,{"$f":"BE66&\"\"","v":""}]
[]
[]
[]
["　",null,"②\n\n　被保険者\n　整理番号",null,null,null,null,null,null,null,null,null,null,null,null,null,null,null,null,null,null,null,null,null,null,null,null,null,null,null,null,null,null,null,"氏　名",null,null,null,null,null,null,null,null,null,null,null,null,null,"（フリガナ）",null,null,null,null,null,null,null,null,null,null,null,null,null,null,null,null,null,null,null,null,null,null,null,null,null,null,null,null,null,null,null,null,null,null,null,null,null,null,null,null,null,null,null,null,null,null,null,null,null,null,null,null,null,null,null,"④\n\n\n 生年月日",null,null,null,null,null,"5. 昭和\n\n7. 平成\n\n9. 令和",null,null,null,null,null,null,null,null,null,null,null,null,null,null,null,null,null,null,null,null,null,null,null,"　",null,"②\n\n　被保険者\n　整理番号",null,null,null,null,null,{"$f":"I70&\"\"","v":""},null,null,null,null,null,null,null,null,null,null,null,null,null,null,null,null,null,null,null,null,null,null,null,null,null,"氏　名",null,null,null,null,null,null,null,null,null,null,null,null,null,"（フリガナ）",null,null,null,null,null,null,null,null,null,null,null,{"$f":"BI70&\"\"","v":""},null,null,null,null,null,null,null,null,null,null,null,null,null,null,null,null,null,null,null,null,null,null,null,null,{"$f":"CH70&\"\"","v":""},null,null,null,null,null,null,null,null,null,null,null,null,null,null,null,null,null,null,"④\n\n\n 生年月日",null,null,null,null,null,{"$f":"DG70","v":"5. 昭和\n\n7. 平成\n\n9. 令和"},null,null,null,null,{"$f":"DL70&\"\"","v":""},null,null,{"$f":"DO70&\"\"","v":""},null,null,{"$f":"DR70&\"\"","v":""},null,null,{"$f":"DU70&\"\"","v":""},null,null,{"$f":"DX70&\"\"","v":""},null,null,{"$f":"EA70&\"\"","v":""}]
[]
[null,null,null,null,null,null,null,null,null,null,null,null,null,null,null,null,null,null,null,null,null,null,null,null,null,null,null,null,null,null,null,null,null,null,null,null,null,null,null,null,null,null,null,null,null,null,null,null,"（氏）",null,null,null,null,null,null,null,null,null,null,null,null,null,null,null,null,null,null,null,null,null,null,null,null,null,null,null,null,null,null,null,null,null,null,null,null,"（名）",null,null,null,null,null,null,null,null,null,null,null,null,null,null,null,null,null,null,null,null,null,null,null,null,null,null,null,null,null,null,null,null,null,null,null,null,null,null,null,null,null,null,null,null,null,null,null,null,null,null,null,null,null,null,null,null,null,null,null,null,null,null,null,null,null,null,null,null,null,null,null,null,null,null,null,null,null,null,null,null,null,null,null,null,null,null,null,null,null,null,null,null,null,null,null,null,"（氏）",null,null,null,null,null,{"$f":"BC72&\"\"","v":""},null,null,null,null,null,null,null,null,null,null,null,null,null,null,null,null,null,null,null,null,null,null,null,null,null,null,null,null,null,null,"（名）",null,null,{"$f":"CK72&\"\"","v":""}]
[]
[]
[]
[]
[null,null,"③\n\n　個人番号",null,null,null,null,null,null,null,null,null,null,null,null,null,null,null,null,null,null,null,null,null,null,null,null,null,null,null,null,null,null,null,null,null,null,null,null,null,null,null,null,null,null,null,null,null,null,null,null,null,null,null,null,null,null,null,null,null,null,null,null,null,null,null,null,null,"住　所\n※個人番号を記入\nした場合は住所\n　記入は不要です。",null,null,null,null,null,null,null,null,null,null,null,null,null,"〒",null,null,null,null,null,null,"-",null,null,null,null,null,null,null,null,null,null,null,null,null,null,null,null,null,null,null,null,null,null,null,null,null,null,null,null,null,null,null,null,null,null,null,null,null,null,null,null,null,null,null,null,null,null,"③\n\n　個人番号",null,null,null,null,null,null,null,null,null,null,null,null,null,null,null,null,null,null,null,null,null,null,null,null,null,null,null,null,null,null,null,null,null,null,null,null,null,null,null,null,null,null,null,null,null,null,null,null,null,null,null,null,null,null,null,null,null,null,null,null,null,null,null,null,null,"住　所"]
[]
[]
[]
[]
[]
[null,null,"⑤\n\n　処理区分\n※該当しない場合は不要です。",null,null,null,null,null,null,null,null,null,null,null,null,null,null,null,null,null,null,null,null,null,null,null,null,null,null,null,null,null,null,null,null,null,null,null,null,null,null,null,null,"⑥",null,null,null,null,null,null,null,null,null,null,null,null,null,null,null,null,null,null,null,null,null,null,null,null,null,null,null,null,null,null,null,null,null,null,null,null,null,null,null,null,null,"⑦\n\n  変 更\n 年月日",null,null,null,null,"9.令和",null,null,null,null,null,null,null,null,null,null,null,null,null,null,null,null,null,null,null,null,null,null,null,"備考",null,null,null,null,null,null,null,null,null,null,null,null,null,null,null,null,null,null,null,null,null,"⑤\n\n　処理区分\n※該当しない場合は不要です。",null,null,null,null,null,{"$f":"I83&\"\"","v":""},null,null,null,null,null,null,null,null,null,null,null,null,null,null,null,null,null,null,null,null,null,null,null,null,null,null,null,null,null,null,null,null,null,null,"⑥",null,null,null,null,null,null,null,null,null,null,null,null,{"$f":"BE83&\"\"","v":""},null,null,null,null,null,null,null,null,null,null,null,null,null,null,null,null,null,null,null,null,null,null,null,null,null,null,null,null,"⑦\n\n  変 更\n 年月日",null,null,null,null,"9.令和",null,null,null,null,null,{"$f":"CS83&\"\"","v":""},null,null,{"$f":"CV83&\"\"","v":""},null,null,{"$f":"CY83&\"\"","v":""},null,null,{"$f":"DB83&\"\"","v":""},null,null,{"$f":"DE83&\"\"","v":""},null,null,{"$f":"DH83&\"\"","v":""},null,null,"備考",null,null,null,null,null,{"$f":"DQ83&\"\"","v":""}]
[]
[null,null,null,null,null,null,null,null,null,null,null,null,null,null,null,null,null,null,null,null,null,null,null,null,null,null,null,null,null,null,null,null,null,null,null,null,null,null,null,null,null,null,null,"変更後\n区分",null,null,null,null,null,null,null,null,null,null,null,null,null,null,null,null,null,null,null,null,null,null,null,null,null,null,null,null,null,null,null,null,null,null,null,null,null,null,null,null,null,null,null,null,null,null,null,null,null,null,null,null,null,null,null,null,null,null,null,null,null,null,null,null,null,null,null,null,null,null,null,null,null,null,null,null,null,null,null,null,null,null,null,null,null,null,null,null,null,null,null,null,null,null,null,null,null,null,null,null,null,null,null,null,null,null,null,null,null,null,null,null,null,null,null,null,null,null,null,null,null,null,null,null,null,null,null,null,null,null,null,null,null,"変更後\n区分"]
[null,null,null,null,null,null,null,null,null,null,null,null,null,null,null,null,null,null,null,null,null,null,null,null,null,null,null,null,null,null,null,null,null,null,null,null,null,null,null,null,null,null,null,null,null,null,null,null,null,null,null,null,null,null,null,null,null,null,null,null,null,null,null,null,null,null,null,null,null,null,null,null,null,null,null,null,null,null,null,null,null,null,null,null,null,null,null,null,null,null,null,null,null,null,null,null,null,null,null,null,null,null,null,null,null,null,null,null,null,null,null,null,null,null,null,null,null,null,null,null,null,null,null,null,null,null,null,null,null,null,null,null,null,null,null,null,null,null,null,null,null,null,{"$f":"I86&\"\"","v":""},null,null,null,null,null,null,null,null,null,null,null,null,null,null,null,null,null,null,null,null,null,null,null,null,null,null,null,null,null,null,null,null,null,null,null,null,null,null,null,null,null,null,null,null,null,null,null,{"$f":"BE86&\"\"","v":""}]
[]
[]
[]
["　",null,"②\n\n　被保険者\n　整理番号",null,null,null,null,null,null,null,null,null,null,null,null,null,null,null,null,null,null,null,null,null,null,null,null,null,null,null,null,null,null,null,"氏　名",null,null,null,null,null,null,null,null,null,null,null,null,null,"（フリガナ）",null,null,null,null,null,null,null,null,null,null,null,null,null,null,null,null,null,null,null,null,null,null,null,null,null,null,null,null,null,null,null,null,null,null,null,null,null,null,null,null,null,null,null,null,null,null,null,null,null,null,null,null,null,null,null,"④\n\n\n 生年月日",null,null,null,null,null,"5. 昭和\n\n7. 平成\n\n9. 令和",null,null,null,null,null,null,null,null,null,null,null,null,null,null,null,null,null,null,null,null,null,null,null,"　",null,"②\n\n　被保険者\n　整理番号",null,null,null,null,null,{"$f":"I90&\"\"","v":""},null,null,null,null,null,null,null,null,null,null,null,null,null,null,null,null,null,null,null,null,null,null,null,null,null,"氏　名",null,null,null,null,null,null,null,null,null,null,null,null,null,"（フリガナ）",null,null,null,null,null,null,null,null,null,null,null,{"$f":"BI90&\"\"","v":""},null,null,null,null,null,null,null,null,null,null,null,null,null,null,null,null,null,null,null,null,null,null,null,null,{"$f":"CH90&\"\"","v":""},null,null,null,null,null,null,null,null,null,null,null,null,null,null,null,null,null,null,"④\n\n\n 生年月日",null,null,null,null,null,{"$f":"DG90","v":"5. 昭和\n\n7. 平成\n\n9. 令和"},null,null,null,null,{"$f":"DL90&\"\"","v":""},null,null,{"$f":"DO90&\"\"","v":""},null,null,{"$f":"DR90&\"\"","v":""},null,null,{"$f":"DU90&\"\"","v":""},null,null,{"$f":"DX90&\"\"","v":""},null,null,{"$f":"EA90&\"\"","v":""}]
[]
[null,null,null,null,null,null,null,null,null,null,null,null,null,null,null,null,null,null,null,null,null,null,null,null,null,null,null,null,null,null,null,null,null,null,null,null,null,null,null,null,null,null,null,null,null,null,null,null,"（氏）",null,null,null,null,null,null,null,null,null,null,null,null,null,null,null,null,null,null,null,null,null,null,null,null,null,null,null,null,null,null,null,null,null,null,null,null,"（名）",null,null,null,null,null,null,null,null,null,null,null,null,null,null,null,null,null,null,null,null,null,null,null,null,null,null,null,null,null,null,null,null,null,null,null,null,null,null,null,null,null,null,null,null,null,null,null,null,null,null,null,null,null,null,null,null,null,null,null,null,null,null,null,null,null,null,null,null,null,null,null,null,null,null,null,null,null,null,null,null,null,null,null,null,null,null,null,null,null,null,null,null,null,null,null,null,"（氏）",null,null,null,null,null,{"$f":"BC92&\"\"","v":""},null,null,null,null,null,null,null,null,null,null,null,null,null,null,null,null,null,null,null,null,null,null,null,null,null,null,null,null,null,null,"（名）",null,null,{"$f":"CK92&\"\"","v":""}]
[]
[]
[]
[]
[null,null,"③\n\n　個人番号",null,null,null,null,null,null,null,null,null,null,null,null,null,null,null,null,null,null,null,null,null,null,null,null,null,null,null,null,null,null,null,null,null,null,null,null,null,null,null,null,null,null,null,null,null,null,null,null,null,null,null,null,null,null,null,null,null,null,null,null,null,null,null,null,null,"住　所\n※個人番号を記入\nした場合は住所\n　記入は不要です。",null,null,null,null,null,null,null,null,null,null,null,null,null,"〒",null,null,null,null,null,null,"-",null,null,null,null,null,null,null,null,null,null,null,null,null,null,null,null,null,null,null,null,null,null,null,null,null,null,null,null,null,null,null,null,null,null,null,null,null,null,null,null,null,null,null,null,null,null,"③\n\n　個人番号",null,null,null,null,null,null,null,null,null,null,null,null,null,null,null,null,null,null,null,null,null,null,null,null,null,null,null,null,null,null,null,null,null,null,null,null,null,null,null,null,null,null,null,null,null,null,null,null,null,null,null,null,null,null,null,null,null,null,null,null,null,null,null,null,null,"住　所"]
[]
[]
[]
[]
[]
[null,null,"⑤\n\n　処理区分\n※該当しない場合は不要です。",null,null,null,null,null,null,null,null,null,null,null,null,null,null,null,null,null,null,null,null,null,null,null,null,null,null,null,null,null,null,null,null,null,null,null,null,null,null,null,null,"⑥",null,null,null,null,null,null,null,null,null,null,null,null,null,null,null,null,null,null,null,null,null,null,null,null,null,null,null,null,null,null,null,null,null,null,null,null,null,null,null,null,null,"⑦\n\n  変 更\n 年月日",null,null,null,null,"9.令和",null,null,null,null,null,null,null,null,null,null,null,null,null,null,null,null,null,null,null,null,null,null,null,"備考",null,null,null,null,null,null,null,null,null,null,null,null,null,null,null,null,null,null,null,null,null,"⑤\n\n　処理区分\n※該当しない場合は不要です。",null,null,null,null,null,{"$f":"I103&\"\"","v":""},null,null,null,null,null,null,null,null,null,null,null,null,null,null,null,null,null,null,null,null,null,null,null,null,null,null,null,null,null,null,null,null,null,null,"⑥",null,null,null,null,null,null,null,null,null,null,null,null,{"$f":"BE103&\"\"","v":""},null,null,null,null,null,null,null,null,null,null,null,null,null,null,null,null,null,null,null,null,null,null,null,null,null,null,null,null,"⑦\n\n  変 更\n 年月日",null,null,null,null,"9.令和",null,null,null,null,null,{"$f":"CS103&\"\"","v":""},null,null,{"$f":"CV103&\"\"","v":""},null,null,{"$f":"CY103&\"\"","v":""},null,null,{"$f":"DB103&\"\"","v":""},null,null,{"$f":"DE103&\"\"","v":""},null,null,{"$f":"DH103&\"\"","v":""},null,null,"備考",null,null,null,null,null,{"$f":"DQ103&\"\"","v":""}]
[]
[null,null,null,null,null,null,null,null,null,null,null,null,null,null,null,null,null,null,null,null,null,null,null,null,null,null,null,null,null,null,null,null,null,null,null,null,null,null,null,null,null,null,null,"変更後\n区分",null,null,null,null,null,null,null,null,null,null,null,null,null,null,null,null,null,null,null,null,null,null,null,null,null,null,null,null,null,null,null,null,null,null,null,null,null,null,null,null,null,null,null,null,null,null,null,null,null,null,null,null,null,null,null,null,null,null,null,null,null,null,null,null,null,null,null,null,null,null,null,null,null,null,null,null,null,null,null,null,null,null,null,null,null,null,null,null,null,null,null,null,null,null,null,null,null,null,null,null,null,null,null,null,null,null,null,null,null,null,null,null,null,null,null,null,null,null,null,null,null,null,null,null,null,null,null,null,null,null,null,null,null,"変更後\n区分"]
[null,null,null,null,null,null,null,null,null,null,null,null,null,null,null,null,null,null,null,null,null,null,null,null,null,null,null,null,null,null,null,null,null,null,null,null,null,null,null,null,null,null,null,null,null,null,null,null,null,null,null,null,null,null,null,null,null,null,null,null,null,null,null,null,null,null,null,null,null,null,null,null,null,null,null,null,null,null,null,null,null,null,null,null,null,null,null,null,null,null,null,null,null,null,null,null,null,null,null,null,null,null,null,null,null,null,null,null,null,null,null,null,null,null,null,null,null,null,null,null,null,null,null,null,null,null,null,null,null,null,null,null,null,null,null,null,null,null,null,null,null,null,{"$f":"I106&\"\"","v":""},null,null,null,null,null,null,null,null,null,null,null,null,null,null,null,null,null,null,null,null,null,null,null,null,null,null,null,null,null,null,null,null,null,null,null,null,null,null,null,null,null,null,null,null,null,null,null,{"$f":"BE106&\"\"","v":""}]
[]
[]
[]
["　",null,"②\n\n　被保険者\n　整理番号",null,null,null,null,null,null,null,null,null,null,null,null,null,null,null,null,null,null,null,null,null,null,null,null,null,null,null,null,null,null,null,"氏　名",null,null,null,null,null,null,null,null,null,null,null,null,null,"（フリガナ）",null,null,null,null,null,null,null,null,null,null,null,null,null,null,null,null,null,null,null,null,null,null,null,null,null,null,null,null,null,null,null,null,null,null,null,null,null,null,null,null,null,null,null,null,null,null,null,null,null,null,null,null,null,null,null,"④\n\n\n 生年月日",null,null,null,null,null,"5. 昭和\n\n7. 平成\n\n9. 令和",null,null,null,null,null,null,null,null,null,null,null,null,null,null,null,null,null,null,null,null,null,null,null,"　",null,"②\n\n　被保険者\n　整理番号",null,null,null,null,null,{"$f":"I110&\"\"","v":""},null,null,null,null,null,null,null,null,null,null,null,null,null,null,null,null,null,null,null,null,null,null,null,null,null,"氏　名",null,null,null,null,null,null,null,null,null,null,null,null,null,"（フリガナ）",null,null,null,null,null,null,null,null,null,null,null,{"$f":"BI110&\"\"","v":""},null,null,null,null,null,null,null,null,null,null,null,null,null,null,null,null,null,null,null,null,null,null,null,null,{"$f":"CH110&\"\"","v":""},null,null,null,null,null,null,null,null,null,null,null,null,null,null,null,null,null,null,"④\n\n\n 生年月日",null,null,null,null,null,{"$f":"DG110","v":"5. 昭和\n\n7. 平成\n\n9. 令和"},null,null,null,null,{"$f":"DL110&\"\"","v":""},null,null,{"$f":"DO110&\"\"","v":""},null,null,{"$f":"DR110&\"\"","v":""},null,null,{"$f":"DU110&\"\"","v":""},null,null,{"$f":"DX110&\"\"","v":""},null,null,{"$f":"EA110&\"\"","v":""}]
[]
[null,null,null,null,null,null,null,null,null,null,null,null,null,null,null,null,null,null,null,null,null,null,null,null,null,null,null,null,null,null,null,null,null,null,null,null,null,null,null,null,null,null,null,null,null,null,null,null,"（氏）",null,null,null,null,null,null,null,null,null,null,null,null,null,null,null,null,null,null,null,null,null,null,null,null,null,null,null,null,null,null,null,null,null,null,null,null,"（名）",null,null,null,null,null,null,null,null,null,null,null,null,null,null,null,null,null,null,null,null,null,null,null,null,null,null,null,null,null,null,null,null,null,null,null,null,null,null,null,null,null,null,null,null,null,null,null,null,null,null,null,null,null,null,null,null,null,null,null,null,null,null,null,null,null,null,null,null,null,null,null,null,null,null,null,null,null,null,null,null,null,null,null,null,null,null,null,null,null,null,null,null,null,null,null,null,"（氏）",null,null,null,null,null,{"$f":"BC112&\"\"","v":""},null,null,null,null,null,null,null,null,null,null,null,null,null,null,null,null,null,null,null,null,null,null,null,null,null,null,null,null,null,null,"（名）",null,null,{"$f":"CK112&\"\"","v":""}]
[]
[]
[]
[]
[null,null,"③\n\n　個人番号",null,null,null,null,null,null,null,null,null,null,null,null,null,null,null,null,null,null,null,null,null,null,null,null,null,null,null,null,null,null,null,null,null,null,null,null,null,null,null,null,null,null,null,null,null,null,null,null,null,null,null,null,null,null,null,null,null,null,null,null,null,null,null,null,null,"住　所\n※個人番号を記入\nした場合は住所\n　記入は不要です。",null,null,null,null,null,null,null,null,null,null,null,null,null,"〒",null,null,null,null,null,null,"-",null,null,null,null,null,null,null,null,null,null,null,null,null,null,null,null,null,null,null,null,null,null,null,null,null,null,null,null,null,null,null,null,null,null,null,null,null,null,null,null,null,null,null,null,null,null,"③\n\n　個人番号",null,null,null,null,null,null,null,null,null,null,null,null,null,null,null,null,null,null,null,null,null,null,null,null,null,null,null,null,null,null,null,null,null,null,null,null,null,null,null,null,null,null,null,null,null,null,null,null,null,null,null,null,null,null,null,null,null,null,null,null,null,null,null,null,null,"住　所"]
[]
[]
[]
[]
[]
[null,null,"⑤\n\n　処理区分\n※該当しない場合は不要です。",null,null,null,null,null,null,null,null,null,null,null,null,null,null,null,null,null,null,null,null,null,null,null,null,null,null,null,null,null,null,null,null,null,null,null,null,null,null,null,null,"⑥",null,null,null,null,null,null,null,null,null,null,null,null,null,null,null,null,null,null,null,null,null,null,null,null,null,null,null,null,null,null,null,null,null,null,null,null,null,null,null,null,null,"⑦\n\n  変 更\n 年月日",null,null,null,null,"9.令和",null,null,null,null,null,null,null,null,null,null,null,null,null,null,null,null,null,null,null,null,null,null,null,"備考",null,null,null,null,null,null,null,null,null,null,null,null,null,null,null,null,null,null,null,null,null,"⑤\n\n　処理区分\n※該当しない場合は不要です。",null,null,null,null,null,{"$f":"I123&\"\"","v":""},null,null,null,null,null,null,null,null,null,null,null,null,null,null,null,null,null,null,null,null,null,null,null,null,null,null,null,null,null,null,null,null,null,null,"⑥",null,null,null,null,null,null,null,null,null,null,null,null,{"$f":"BE123&\"\"","v":""},null,null,null,null,null,null,null,null,null,null,null,null,null,null,null,null,null,null,null,null,null,null,null,null,null,null,null,null,"⑦\n\n  変 更\n 年月日",null,null,null,null,"9.令和",null,null,null,null,null,{"$f":"CS123&\"\"","v":""},null,null,{"$f":"CV123&\"\"","v":""},null,null,{"$f":"CY123&\"\"","v":""},null,null,{"$f":"DB123&\"\"","v":""},null,null,{"$f":"DE123&\"\"","v":""},null,null,{"$f":"DH123&\"\"","v":""},null,null,"備考",null,null,null,null,null,{"$f":"DQ123&\"\"","v":""}]
[]
[null,null,null,null,null,null,null,null,null,null,null,null,null,null,null,null,null,null,null,null,null,null,null,null,null,null,null,null,null,null,null,null,null,null,null,null,null,null,null,null,null,null,null,"変更後\n区分",null,null,null,null,null,null,null,null,null,null,null,null,null,null,null,null,null,null,null,null,null,null,null,null,null,null,null,null,null,null,null,null,null,null,null,null,null,null,null,null,null,null,null,null,null,null,null,null,null,null,null,null,null,null,null,null,null,null,null,null,null,null,null,null,null,null,null,null,null,null,null,null,null,null,null,null,null,null,null,null,null,null,null,null,null,null,null,null,null,null,null,null,null,null,null,null,null,null,null,null,null,null,null,null,null,null,null,null,null,null,null,null,null,null,null,null,null,null,null,null,null,null,null,null,null,null,null,null,null,null,null,null,null,"変更後\n区分"]
[null,null,null,null,null,null,null,null,null,null,null,null,null,null,null,null,null,null,null,null,null,null,null,null,null,null,null,null,null,null,null,null,null,null,null,null,null,null,null,null,null,null,null,null,null,null,null,null,null,null,null,null,null,null,null,null,null,null,null,null,null,null,null,null,null,null,null,null,null,null,null,null,null,null,null,null,null,null,null,null,null,null,null,null,null,null,null,null,null,null,null,null,null,null,null,null,null,null,null,null,null,null,null,null,null,null,null,null,null,null,null,null,null,null,null,null,null,null,null,null,null,null,null,null,null,null,null,null,null,null,null,null,null,null,null,null,null,null,null,null,null,null,{"$f":"I126&\"\"","v":""},null,null,null,null,null,null,null,null,null,null,null,null,null,null,null,null,null,null,null,null,null,null,null,null,null,null,null,null,null,null,null,null,null,null,null,null,null,null,null,null,null,null,null,null,null,null,null,{"$f":"BE126&\"\"","v":""}]

{"sheet":"裏面　（記入方法）","index":1,"n_rows":0,"n_cols":0,"rows_kept":0,"cut":false,"hidden":false,"merged":[]}

{"sheet":"Sheet2","index":2,"n_rows":18,"n_cols":14,"rows_kept":18,"cut":false,"hidden":true,"merged":[]}
[]
[]
["選択してください",null,"選択してください",null,"選択してください",null,"該当するものを選択してください",null,"選択してください"]
["5. 昭和",null,"1. 男",null,"0. 無",null,"0. 　該当なし",null,"0. なし"]
["7. 平成",null,"2. 女",null,"1. 有",null,"1. 　二以上事業所勤務者の喪失",null,"1. 海外在住"]
["9. 令和",null,"3. 坑内員",null,null,null,"2. 　退職後の継続再雇用者の喪失",null,"2. 短期在留"]
[null,null,"5. 男（基金）",null,null,null,"3. 　転勤",null,"3. その他"]
[null,null,"6. 女（基金）",null,null,null,"4. 　その他"]
[null,null,"7. 坑内員（基金）"]
[]
[]
[]
["選択してください",null,null,null,null,"　"]
["4. 　退職等",null,null,null,null,"✓",null,null,null,"令和","年","月","日退職等","日"]
["5. 　死亡",null,null,null,null,null,null,null,null,"令和","年","月","日死亡"]
["7. 　75歳到達（健康保険のみ喪失）"]
["9. 　障害認定（健康保険のみ喪失）"]
["11.社会保障協定"]